fUST/lending_fUST_20250219
["ID","MTS","AMOUNT","RATE_DAILY","PERIOD"]
[353637913,1739976636110,-500.0,0.00013698,2]
[353637915,1739976636120,-646.26,0.00013698,2]
[353637917,1739976636129,-500.0,0.00013698,2]
[353637919,1739976636139,-500.0,0.00013698,2]
[353637921,1739976636149,-500.0,0.00013698,2]
[353637923,1739976636159,-500.0,0.00013698,2]
[353637925,1739976636169,-500.0,0.00013698,2]
[353637927,1739976636179,-500.0,0.00013698,2]
[353637929,1739976636189,-563.06,0.00013698,2]
[353637931,1739976636199,-500.0,0.00013698,2]
[353637933,1739976636208,-500.0,0.00013698,2]
[353637934,1739976636217,-500.0,0.00013698,2]
[353637935,1739976636227,-500.0,0.00013698,2]
[353637936,1739976636236,-553.12,0.00013698,2]
[353637937,1739976636245,-500.0,0.00013698,2]
[353637938,1739976636256,-500.0,0.00013698,2]
[353637939,1739976636265,-500.0,0.00013698,2]
[353637940,1739976636274,-502.69,0.00013698,2]
[353637941,1739976636284,-626.62,0.00013698,2]
[353637942,1739976636293,-500.0,0.00013698,2]
[353637943,1739976636302,-500.0,0.00013698,2]
[353637944,1739976636312,-608.94,0.00013698,2]
[353637945,1739976636321,-500.0,0.00013698,2]
[353637946,1739976636330,-500.0,0.00013698,2]
[353637947,1739976636340,-521.36,0.00013698,2]
[353637948,1739976636350,-500.0,0.00013698,2]
[353637949,1739976636359,-500.0,0.00013698,2]
[353637950,1739976636369,-634.29,0.00013698,2]
[353637951,1739976636379,-500.0,0.00013698,2]
[353637952,1739976636388,-500.0,0.00013698,2]
[353637953,1739976636398,-641.74,0.00013698,2]
[353637954,1739976636407,-239.01300464,0.00013698,2]
[353637955,1739976636417,-372.60452292,0.00013698,2]
[353637956,1739976636433,-127.39547708,0.00013698,2]
[353637957,1739976636443,-500.0,0.00013698,2]
[353637958,1739976636453,-500.0,0.00013698,2]
[353637959,1739976636463,-500.0,0.00013698,2]
[353637960,1739976636473,-500.0,0.00013698,2]
[353637961,1739976636482,-500.0,0.00013698,2]
[353637962,1739976636491,-500.0,0.00013698,2]
[353637963,1739976636501,-500.0,0.00013698,2]
[353637964,1739976636511,-684.58,0.00013698,2]
[353637965,1739976636521,-500.0,0.00013698,2]
[353637966,1739976636530,-500.0,0.00013698,2]
[353637967,1739976636540,-500.0,0.00013698,2]
[353637968,1739976636550,-500.0,0.00013698,2]
[353637969,1739976636559,-500.0,0.00013698,2]
[353637970,1739976636569,-500.0,0.00013698,2]
[353637971,1739976636582,-500.0,0.00013698,2]
[353637972,1739976636592,-500.0,0.00013698,2]
[353637973,1739976636601,-500.0,0.00013698,2]
[353637974,1739976636610,-500.0,0.00013698,2]
[353637975,1739976636621,-500.0,0.00013698,2]
[353637976,1739976636631,-163.92969188,0.00013698,2]
[353637977,1739976636643,-336.07030812,0.00013698,2]
[353637978,1739976636652,-500.0,0.00013698,2]
[353637979,1739976636662,-500.0,0.00013698,2]
[353637980,1739976636672,-500.0,0.00013698,2]
[353637981,1739976636681,-1145.44,0.00013698,2]
[353637982,1739976636690,-500.0,0.00013698,2]
[353637983,1739976636699,-583.18,0.00013698,2]
[353637984,1739976636708,-500.0,0.00013698,2]
[353637985,1739976636717,-500.0,0.00013698,2]
[353637986,1739976636726,-500.0,0.00013698,2]
[353637987,1739976636736,-500.0,0.00013698,2]
[353637988,1739976636746,-500.0,0.00013698,2]
[353637989,1739976636756,-500.0,0.00013698,2]
[353637990,1739976636765,-500.0,0.00013698,2]
[353637991,1739976636775,-500.0,0.00013698,2]
[353637992,1739976636784,-500.0,0.00013698,2]
[353637993,1739976636793,-500.0,0.00013698,2]
[353637994,1739976636803,-513.76070148,0.00013698,2]
[353637995,1739976636812,-500.0,0.00013698,2]
[353637996,1739976636821,-500.0,0.00013698,2]
[353637997,1739976636830,-500.0,0.00013698,2]
[353637998,1739976636839,-500.0,0.00013698,2]
[353637999,1739976636849,-4294.48,0.00013698,2]
[353638000,1739976636858,-500.0,0.00013698,2]
[353638001,1739976636867,-500.0,0.00013698,2]
[353638002,1739976636877,-500.0,0.00013698,2]
[353638003,1739976636886,-500.0,0.00013698,2]
[353638004,1739976636896,-511.59,0.00013698,2]
[353638005,1739976636905,-500.0,0.00013698,2]
[353638006,1739976636914,-500.0,0.00013698,2]
[353638007,1739976636923,-500.0,0.00013698,2]
[353638008,1739976636932,-500.0,0.00013698,2]
[353638009,1739976636942,-500.0,0.00013698,2]
[353638010,1739976636951,-500.0,0.00013698,2]
[353638011,1739976636961,-500.0,0.00013698,2]
[353638012,1739976636970,-500.0,0.00013698,2]
[353638013,1739976636979,-1002.89,0.00013698,2]
[353638014,1739976636989,-500.0,0.00013698,2]
[353638015,1739976636998,-500.0,0.00013698,2]
[353638016,1739976637008,-1007.92,0.00013698,2]
[353638017,1739976637018,-839.2,0.00013698,2]
[353638018,1739976637027,-500.0,0.00013698,2]
[353638019,1739976637037,-500.0,0.00013698,2]
[353638020,1739976637046,-500.0,0.00013698,2]
[353638021,1739976637055,-500.0,0.00013698,2]
[353638022,1739976637064,-500.0,0.00013698,2]
[353638023,1739976637074,-2859.74,0.00013698,2]
[353638024,1739976637083,-500.0,0.00013698,2]
[353638025,1739976637092,-500.0,0.00013698,2]
[353638026,1739976637102,-500.0,0.00013698,2]
[353638027,1739976637111,-500.0,0.00013698,2]
[353638028,1739976637120,-500.0,0.00013698,2]
[353638029,1739976637129,-500.0,0.00013698,2]
[353638030,1739976637138,-574.85,0.00013698,2]
[353638031,1739976637148,-500.0,0.00013698,2]
[353638032,1739976637157,-500.0,0.00013698,2]
[353638033,1739976637167,-500.0,0.00013698,2]
[353638034,1739976637176,-12576.75,0.00013698,2]
[353638035,1739976637186,-500.0,0.00013698,2]
[353638036,1739976637195,-500.0,0.00013698,2]
[353638037,1739976637204,-500.0,0.00013698,2]
[353638038,1739976637213,-500.0,0.00013698,2]
[353638039,1739976637223,-958.93,0.00013698,2]
[353638040,1739976637232,-500.0,0.00013698,2]
[353638042,1739976637241,-500.0,0.00013698,2]
[353638044,1739976637250,-683.31,0.00013698,2]
[353638045,1739976637261,-500.0,0.00013698,2]
[353638046,1739976637270,-500.0,0.00013698,2]
[353638047,1739976637279,-1500.91,0.00013698,2]
[353638048,1739976637288,-500.0,0.00013698,2]
[353638049,1739976637297,-500.0,0.00013698,2]
[353638050,1739976637306,-4615.22,0.00013698,2]
[353638051,1739976637315,-501.79540263,0.00013698,2]
[353638052,1739976637324,-500.0,0.00013698,2]
[353638053,1739976637333,-232.098212,0.00013699,2]
[353638054,1739976637342,-190.447861,0.00013699,2]
[353638055,1739976637351,-500.0,0.00013699,2]
[353638056,1739976637361,-500.0,0.00013699,2]
[353638057,1739976637370,-500.0,0.00013699,2]
[353638058,1739976637380,-500.0,0.00013699,2]
[353638059,1739976637389,-500.0,0.00013699,2]
[353638060,1739976637398,-500.0,0.00013699,2]
[353638061,1739976637408,-500.0,0.00013699,2]
[353638063,1739976637418,-500.0,0.00013699,2]
[353638064,1739976637427,-500.0,0.00013699,2]
[353638066,1739976637436,-500.0,0.00013699,2]
[353638067,1739976637446,-500.0,0.00013699,2]
[353638076,1739976637555,-500.0,0.00013699,2]
[353638077,1739976637566,-500.0,0.00013699,2]
[353638078,1739976637580,-500.0,0.00013699,2]
[353638079,1739976637591,-500.0,0.00013699,2]
[353638080,1739976637600,-500.0,0.00013699,2]
[353638081,1739976637610,-500.0,0.00013699,2]
[353638082,1739976637621,-500.0,0.00013699,2]
[353638083,1739976637630,-500.0,0.00013699,2]
[353638084,1739976637639,-419.36876615,0.00013699,2]
[353638086,1739976637740,-80.63123385,0.00013699,2]
[353638087,1739976637749,-500.0,0.00013699,2]
[353638088,1739976637761,-545.06109254,0.00013699,2]
[353638090,1739976637770,-500.0,0.00013699,2]
[353638092,1739976637780,-500.0,0.00013699,2]
[353638094,1739976637789,-500.0,0.00013699,2]
[353638096,1739976637799,-500.0,0.00013699,2]
[353638098,1739976637808,-500.0,0.00013699,2]
[353638100,1739976637817,-500.0,0.00013699,2]
[353638102,1739976637827,-500.0,0.00013699,2]
[353638104,1739976637836,-184.40793068,0.00013779,2]
[353638106,1739976637846,-500.0,0.00013779,2]
[353638108,1739976637856,-543.70914019,0.00013779,2]
[353638110,1739976637865,-500.0,0.0001378,2]
[353638112,1739976637875,-344.82,0.0001378,2]
[353638114,1739976637884,-176.98,0.0001378,2]
[353638116,1739976637893,-259.54,0.0001378,2]
[353638118,1739976637902,-624.53,0.0001378,2]
[353638120,1739976637912,-157.76,0.0001378,2]
[353638122,1739976637922,-210.39,0.0001378,2]
[353638124,1739976637931,-500.0,0.0001378,2]
[353638126,1739976637940,-500.0,0.0001378,2]
[353638128,1739976637950,-626.36383376,0.0001378,2]
[353638130,1739976637960,-639.43,0.0001378,2]
[353638132,1739976637970,-570.48,0.0001378,2]
[353638134,1739976637979,-500.0,0.0001378,2]
[353638136,1739976637988,-441.9,0.0001378,2]
[353638138,1739976637998,-500.0,0.0001378,2]
[353638140,1739976638009,-422.5,0.0001378,2]
[353638142,1739976638018,-500.0,0.0001378,2]
[353638144,1739976638027,-426.06844729,0.0001378,2]
[353638146,1739976638037,-684.58,0.0001378,2]
[353638147,1739976638049,-500.0,0.0001378,2]
[353638149,1739976638059,-500.0,0.0001378,2]
[353638151,1739976638068,-500.0,0.0001378,2]
[353638152,1739976638078,-500.0,0.0001378,2]
[353638153,1739976638088,-621.51,0.0001378,2]
[353638154,1739976638097,-218.2,0.0001378,2]
[353638155,1739976638107,-500.0,0.0001378,2]
[353638156,1739976638116,-500.0,0.0001378,2]
[353638157,1739976638126,-182.44,0.0001378,2]
[353638158,1739976638136,-500.0,0.0001378,2]
[353638159,1739976638145,-500.0,0.0001378,2]
[353638160,1739976638155,-500.0,0.0001378,2]
[353638161,1739976638164,-1145.44,0.0001378,2]
[353638162,1739976638174,-206.85,0.0001378,2]
[353638163,1739976638183,-275.55,0.0001378,2]
[353638164,1739976638193,-500.0,0.0001378,2]
[353638165,1739976638202,-500.0,0.0001378,2]
[353638166,1739976638212,-500.0,0.0001378,2]
[353638167,1739976638222,-4294.48,0.0001378,2]
[353638168,1739976638231,-506.39,0.0001378,2]
[353638169,1739976638241,-500.0,0.0001378,2]
[353638170,1739976638251,-204.82,0.0001378,2]
[353638171,1739976638262,-500.0,0.0001378,2]
[353638172,1739976638271,-183.38,0.0001378,2]
[353638173,1739976638280,-182.84,0.0001378,2]
[353638174,1739976638290,-287.2,0.0001378,2]
[353638175,1739976638299,-1002.89,0.0001378,2]
[353638176,1739976638308,-1007.92,0.0001378,2]
[353638177,1739976638318,-332.22672662,0.0001378,2]
[353638178,1739976638330,-506.97327338,0.0001378,2]
[353638179,1739976638340,-440.28,0.0001378,2]
[353638180,1739976638349,-500.0,0.0001378,2]
[353638181,1739976638358,-500.0,0.0001378,2]
[353638182,1739976638368,-2859.74,0.0001378,2]
[353638183,1739976638378,-499.42,0.0001378,2]
[353638184,1739976638387,-273.25597559,0.0001378,2]
[353638185,1739976638554,-500.0,0.00013698,2]
[353638186,1739976638565,-226.74402441,0.0001378,2]
[353638187,1739976638576,-500.0,0.0001378,2]
[353638188,1739976638587,-500.0,0.0001378,2]
[353638189,1739976638596,-500.0,0.0001378,2]
[353638190,1739976638606,-238.89,0.0001378,2]
[353638191,1739976638617,-500.0,0.0001378,2]
[353638192,1739976638626,-500.0,0.0001378,2]
[353638193,1739976638636,-2015.34824113,0.0001378,2]
[353638194,1739976638648,-7674.05839808,0.0001378,2]
[353638195,1739976638662,-2887.34336079,0.0001378,2]
[353638196,1739976638672,-958.93,0.0001378,2]
[353638197,1739976638681,-500.0,0.0001378,2]
[353638198,1739976638691,-683.31,0.0001378,2]
[353638199,1739976638700,-456.58326713,0.0001378,2]
[353638200,1739976638709,-500.0,0.0001378,2]
[353638201,1739976638719,-1500.91,0.0001378,2]
[353638202,1739976638732,-500.0,0.0001378,2]
[353638203,1739976638743,-500.0,0.0001378,2]
[353638204,1739976638752,-4615.22,0.0001378,2]
[353638205,1739976638764,-151.0,0.000138,2]
[353638206,1739976638774,-151.0,0.000138,2]
[353638207,1739976638783,-500.0,0.00013863,2]
[353638208,1739976638793,-500.0,0.00013863,2]
[353638209,1739976638803,-500.0,0.00013863,2]
[353638210,1739976638813,-500.0,0.00013863,2]
[353638211,1739976638823,-500.0,0.00013863,2]
[353638212,1739976638832,-684.58,0.00013863,2]
[353638213,1739976638841,-500.0,0.00013863,2]
[353638214,1739976638851,-520.55724376,0.00013863,2]
[353638215,1739976638861,-500.0,0.00013863,2]
[353638216,1739976638871,-500.0,0.00013863,2]
[353638217,1739976638881,-500.0,0.00013863,2]
[353638218,1739976638891,-500.0,0.00013863,2]
[353638219,1739976638900,-500.0,0.00013863,2]
[353638220,1739976638910,-500.0,0.00013863,2]
[353638221,1739976638920,-1145.44,0.00013863,2]
[353638222,1739976638929,-319.76021452,0.00013863,2]
[353638223,1739976638942,-180.23978548,0.00013863,2]
[353638224,1739976638951,-571.31399231,0.00013863,2]
[353638225,1739976638961,-329.66488513,0.00013863,2]
[353638226,1739976638973,-170.33511487,0.00013863,2]
[353638227,1739976638983,-734.64612905,0.00013863,2]
[353638228,1739976638994,-451.138672,0.00013863,2]
[353638229,1739976639008,-1078.107955,0.00013863,2]
[353638230,1739976639024,-312.32,0.0001378,2]
[353638231,1739976639033,-2030.58724395,0.00013863,2]
[353638232,1739976639043,-623.77,0.00013863,2]
[353638233,1739976639053,-500.0,0.00013863,2]
[353638234,1739976639063,-1002.89,0.00013863,2]
[353638235,1739976639073,-1007.92,0.00013863,2]
[353638236,1739976639083,-839.2,0.00013863,2]
[353638237,1739976639093,-500.0,0.00013863,2]
[353638238,1739976639103,-500.0,0.00013863,2]
[353638239,1739976639113,-2859.74,0.00013863,2]
[353638240,1739976639122,-500.0,0.00013863,2]
[353638241,1739976639131,-500.0,0.00013863,2]
[353638242,1739976639141,-500.0,0.00013863,2]
[353638243,1739976639151,-636.79,0.00013863,2]
[353638244,1739976639161,-500.0,0.00013863,2]
[353638245,1739976639171,-12576.75,0.00013863,2]
[353638246,1739976639181,-958.93,0.00013863,2]
[353638247,1739976639190,-500.0,0.00013863,2]
[353638248,1739976639200,-683.31,0.00013863,2]
[353638249,1739976639209,-500.0,0.00013863,2]
[353638250,1739976639219,-1500.91,0.00013863,2]
[353638251,1739976639228,-251.15,0.00013863,2]
[353638252,1739976639238,-500.0,0.00013863,2]
[353638253,1739976639248,-4615.22,0.00013863,2]
[353638254,1739976639259,-151.0,0.000139,2]
[353638255,1739976639269,-152.0,0.00013929,2]
[353638256,1739976639278,-500.0,0.00013945,2]
[353638257,1739976639287,-500.0,0.00013945,2]
[353638258,1739976639296,-500.0,0.00013945,2]
[353638259,1739976639306,-500.0,0.00013945,2]
[353638260,1739976639316,-502.75966118,0.00013945,2]
[353638261,1739976639326,-684.58,0.00013945,2]
[353638262,1739976639335,-500.0,0.00013945,2]
[353638263,1739976639345,-500.0,0.00013945,2]
[353638264,1739976639355,-500.0,0.00013945,2]
[353638265,1739976639365,-500.0,0.00013945,2]
[353638266,1739976639374,-500.0,0.00013945,2]
[353638267,1739976639384,-500.0,0.00013945,2]
[353638269,1739976639394,-500.0,0.00013945,2]
[353638270,1739976639403,-1145.44,0.00013945,2]
[353638271,1739976639412,-500.0,0.00013945,2]
[353638272,1739976639422,-500.0,0.00013945,2]
[353638273,1739976639431,-4294.48,0.00013945,2]
[353638274,1739976639440,-500.0,0.00013945,2]
[353638275,1739976639451,-1002.89,0.00013945,2]
[353638276,1739976639461,-1007.92,0.00013945,2]
[353638277,1739976639470,-839.2,0.00013945,2]
[353638278,1739976639480,-500.0,0.00013945,2]
[353638279,1739976639490,-500.0,0.00013945,2]
[353638280,1739976639500,-2859.74,0.00013945,2]
[353638281,1739976639511,-500.0,0.00013945,2]
[353638282,1739976639521,-500.0,0.00013945,2]
[353638283,1739976639530,-500.0,0.00013945,2]
[353638284,1739976639539,-12576.75,0.00013945,2]
[353638285,1739976639548,-958.93,0.00013945,2]
[353638286,1739976639558,-500.0,0.00013945,2]
[353638289,1739976639568,-683.31,0.00013945,2]
[353638292,1739976639583,-500.0,0.00013945,2]
[353638294,1739976639593,-1500.91,0.00013945,2]
[353638296,1739976639603,-500.0,0.00013945,2]
[353638298,1739976639613,-4615.22,0.00013945,2]
[353638300,1739976639624,-251.50138872,0.00013975,2]
[353638302,1739976639634,-151.0,0.00014,2]
[353638304,1739976639644,-500.0,0.00014027,2]
[353638306,1739976639654,-500.0,0.00014027,2]
[353638308,1739976639664,-259.05586383,0.00014027,2]
[353638310,1739976639674,-500.0,0.00014027,2]
[353638312,1739976639684,-684.58,0.00014027,2]
[353638314,1739976639694,-500.0,0.00014027,2]
[353638316,1739976639703,-500.0,0.00014027,2]
[353638318,1739976639713,-500.0,0.00014027,2]
[353638320,1739976639723,-500.0,0.00014027,2]
[353638322,1739976639733,-500.0,0.00014027,2]
[353638324,1739976639745,-500.0,0.00014027,2]
[353638326,1739976639755,-500.0,0.00014027,2]
[353638328,1739976639767,-1145.44,0.00014027,2]
[353638330,1739976639777,-500.0,0.00014027,2]
[353638332,1739976639786,-500.0,0.00014027,2]
[353638334,1739976639796,-4294.48,0.00014027,2]
[353638335,1739976639806,-500.0,0.00014027,2]
[353638336,1739976639815,-1002.89,0.00014027,2]
[353638337,1739976639824,-1007.92,0.00014027,2]
[353638338,1739976639834,-839.2,0.00014027,2]
[353638339,1739976639844,-500.0,0.00014027,2]
[353638340,1739976639855,-500.0,0.00014027,2]
[353638341,1739976639865,-2859.74,0.00014027,2]
[353638342,1739976639876,-211.05,0.00014027,2]
[353638343,1739976639885,-500.0,0.00014027,2]
[353638344,1739976639896,-500.0,0.00014027,2]
[353638345,1739976639905,-12576.75,0.00014027,2]
[353638346,1739976639915,-958.93,0.00014027,2]
[353638347,1739976639925,-500.0,0.00014027,2]
[353638348,1739976639933,-683.31,0.00014027,2]
[353638349,1739976639943,-500.0,0.00014027,2]
[353638350,1739976639952,-1500.91,0.00014027,2]
[353638351,1739976640054,-500.0,0.00014027,2]
[353638352,1739976640065,-4615.22,0.00014027,2]
[353638353,1739976640074,-2223.42860848,0.00014091,2]
[353638354,1739976640084,-151.0,0.000141,2]
[353638355,1739976640093,-258.48657166,0.00014109,2]
[353638356,1739976640103,-547.74,0.00014109,2]
[353638357,1739976640112,-500.0,0.00014109,2]
[353638358,1739976640122,-684.58,0.00014109,2]
[353638359,1739976640131,-500.0,0.00014109,2]
[353638360,1739976640140,-500.0,0.00014109,2]
[353638361,1739976640150,-500.0,0.00014109,2]
[353638362,1739976640160,-500.0,0.00014109,2]
[353638363,1739976640169,-500.0,0.00014109,2]
[353638364,1739976640178,-553.72,0.00014109,2]
[353638365,1739976640188,-500.0,0.00014109,2]
[353638367,1739976640197,-1145.44,0.00014109,2]
[353638368,1739976640207,-500.0,0.00014109,2]
[353638369,1739976640216,-4294.48,0.00014109,2]
[353638371,1739976640226,-500.0,0.00014109,2]
[353638372,1739976640235,-1002.89,0.00014109,2]
[353638373,1739976640244,-1007.92,0.00014109,2]
[353638374,1739976640254,-839.2,0.00014109,2]
[353638375,1739976640266,-500.0,0.00014109,2]
[353638376,1739976640276,-503.9,0.00014109,2]
[353638377,1739976640285,-2859.74,0.00014109,2]
[353638378,1739976640294,-167.79,0.00014109,2]
[353638379,1739976640304,-500.0,0.00014109,2]
[353638380,1739976640313,-12576.75,0.00014109,2]
[353638381,1739976640322,-958.93,0.00014109,2]
[353638382,1739976640332,-500.0,0.00014109,2]
[353638383,1739976640342,-683.31,0.00014109,2]
[353638384,1739976640351,-500.0,0.00014109,2]
[353638385,1739976640360,-1500.91,0.00014109,2]
[353638387,1739976640370,-500.0,0.00014109,2]
[353638389,1739976640379,-4615.22,0.00014109,2]
[353638391,1739976640389,-500.0,0.00014164,2]
[353638393,1739976640398,-500.0,0.00014191,2]
[353638395,1739976640407,-684.58,0.00014191,2]
[353638397,1739976640418,-500.0,0.00014191,2]
[353638399,1739976640427,-500.0,0.00014191,2]
[353638401,1739976640436,-500.0,0.00014191,2]
[353638403,1739976640445,-500.0,0.00014191,2]
[353638405,1739976640455,-500.0,0.00014191,2]
[353638407,1739976640465,-500.0,0.00014191,2]
[353638409,1739976640474,-1145.44,0.00014191,2]
[353638411,1739976640483,-500.0,0.00014191,2]
[353638413,1739976640493,-4294.48,0.00014191,2]
[353638415,1739976640502,-500.0,0.00014191,2]
[353638417,1739976640515,-1002.89,0.00014191,2]
[353638419,1739976640524,-1007.92,0.00014191,2]
[353638421,1739976640534,-839.2,0.00014191,2]
[353638423,1739976640543,-500.0,0.00014191,2]
[353638425,1739976640553,-2859.74,0.00014191,2]
[353638427,1739976640563,-500.0,0.00014191,2]
[353638429,1739976640576,-12576.75,0.00014191,2]
[353638431,1739976640586,-958.93,0.00014191,2]
[353638433,1739976640596,-500.0,0.00014191,2]
[353638435,1739976640606,-683.31,0.00014191,2]
[353638437,1739976640617,-500.0,0.00014191,2]
[353638439,1739976640626,-1500.91,0.00014191,2]
[353638441,1739976640636,-338.19892472,0.00014191,2]
[353638443,1739976640646,-4615.22,0.00014191,2]
[353638445,1739976640657,-151.0,0.000142,2]
[353638447,1739976640666,-151.0,0.000142,2]
[353638449,1739976640676,-1007.8268122,0.00014247,2]
[353638450,1739976640685,-500.0,0.00014273,2]
[353638451,1739976640694,-684.58,0.00014273,2]
[353638452,1739976640703,-500.0,0.00014273,2]
[353638453,1739976640712,-500.0,0.00014273,2]
[353638454,1739976640721,-500.0,0.00014273,2]
[353638455,1739976640730,-500.0,0.00014273,2]
[353638456,1739976640739,-500.0,0.00014273,2]
[353638457,1739976640749,-500.0,0.00014273,2]
[353638458,1739976640758,-1145.44,0.00014273,2]
[353638459,1739976640770,-500.0,0.00014273,2]
[353638460,1739976640779,-4294.48,0.00014273,2]
[353638461,1739976640787,-500.0,0.00014273,2]
[353638462,1739976640796,-1002.89,0.00014273,2]
[353638463,1739976640805,-1007.92,0.00014273,2]
[353638464,1739976640814,-839.2,0.00014273,2]
[353638465,1739976640823,-500.0,0.00014273,2]
[353638466,1739976640832,-2859.74,0.00014273,2]
[353638467,1739976640841,-500.0,0.00014273,2]
[353638468,1739976640851,-12576.75,0.00014273,2]
[353638469,1739976640861,-958.93,0.00014273,2]
[353638470,1739976640870,-500.0,0.00014273,2]
[353638471,1739976640879,-683.31,0.00014273,2]
[353638472,1739976640889,-500.0,0.00014273,2]
[353638473,1739976640898,-1500.91,0.00014273,2]
[353638474,1739976640907,-4615.22,0.00014273,2]
[353638475,1739976640916,-192.0,0.00014324,2]
[353638476,1739976640926,-500.0,0.00014356,2]
[353638478,1739976640936,-684.58,0.00014356,2]
[353638480,1739976640945,-500.0,0.00014356,2]
[353638482,1739976640955,-500.0,0.00014356,2]
[353638484,1739976640964,-500.0,0.00014356,2]
[353638486,1739976640974,-234.7,0.00014356,2]
[353638488,1739976640984,-500.0,0.00014356,2]
[353638490,1739976640994,-500.0,0.00014356,2]
[353638492,1739976641005,-1145.44,0.00014356,2]
[353638494,1739976641022,-500.0,0.00014356,2]
[353638496,1739976641033,-4294.48,0.00014356,2]
[353638498,1739976641042,-500.0,0.00014356,2]
[353638500,1739976641052,-1002.89,0.00014356,2]
[353638502,1739976641062,-1007.92,0.00014356,2]
[353638504,1739976641072,-839.2,0.00014356,2]
[353638506,1739976641083,-500.0,0.00014356,2]
[353638508,1739976641092,-2859.74,0.00014356,2]
[353638511,1739976641103,-500.0,0.00014356,2]
[353638513,1739976641112,-12576.75,0.00014356,2]
[353638514,1739976641122,-958.93,0.00014356,2]
[353638517,1739976641132,-500.0,0.00014356,2]
[353638519,1739976641143,-683.31,0.00014356,2]
[353638520,1739976641153,-500.0,0.00014356,2]
[353638523,1739976641162,-1500.91,0.00014356,2]
[353638524,1739976641171,-4615.22,0.00014356,2]
[353638526,1739976641181,-151.0,0.000144,2]
[353638528,1739976641190,-151.0,0.000144,2]
[353638531,1739976641200,-151.0,0.000144,2]
[353638533,1739976641209,-179.65864857,0.000144,2]
[353638534,1739976641219,-181.21594715,0.0001442,2]
[353638536,1739976641228,-345.66,0.00014438,2]
[353638538,1739976641237,-684.58,0.00014438,2]
[353638540,1739976641247,-500.0,0.00014438,2]
[353638542,1739976641256,-500.0,0.00014438,2]
[353638545,1739976641270,-250.75,0.00014438,2]
[353638546,1739976641280,-500.0,0.00014438,2]
[353638548,1739976641289,-500.0,0.00014438,2]
[353638550,1739976641299,-1145.44,0.00014438,2]
[353638552,1739976641309,-500.0,0.00014438,2]
[353638555,1739976641319,-4294.48,0.00014438,2]
[353638556,1739976641328,-500.0,0.00014438,2]
[353638558,1739976641337,-1002.89,0.00014438,2]
[353638560,1739976641346,-1007.92,0.00014438,2]
[353638562,1739976641356,-839.2,0.00014438,2]
[353638565,1739976641365,-500.0,0.00014438,2]
[353638566,1739976641375,-2859.74,0.00014438,2]
[353638568,1739976641384,-12576.75,0.00014438,2]
[353638570,1739976641393,-500.0,0.00014438,2]
[353638572,1739976641402,-958.93,0.00014438,2]
[353638574,1739976641412,-500.0,0.00014438,2]
[353638576,1739976641421,-683.31,0.00014438,2]